[Event "Titled Tuesday Blitz July 4 Late 2023"]
[White "Gomez Barrera, Javiera Belen"]
[Black "Tristan, Leonardo"]
[WhiteFideId "3418723"]
[BlackFideId "113816"]
[WhiteElo "2479"]
[BlackElo "2773"]
[Result "0-1"]
[Round "3"]
[TimeControl "180+2"]
[Date "2023.07.04"]
[WhiteClock "0:00:07"]
[BlackClock "0:00:06"]
[Board "62"]

1. e4 {[%clk 0:03:00]}  d5 {[%clk 0:02:59]} 2. exd5 {[%clk 0:03:00]}  Qxd5 {[%clk 0:03:00]} 3. Nc3 {[%clk 0:03:00]}  Qa5 {[%clk 0:03:00]} 4. d4 {[%clk 0:03:01]}  Nf6 {[%clk 0:03:00]} 5. Bd2 {[%clk 0:03:02]}  Bg4 {[%clk 0:02:58]} 6. Be2 {[%clk 0:03:00]}  Bxe2 {[%clk 0:02:57]} 7. Qxe2 {[%clk 0:02:59]}  e6 {[%clk 0:02:52]} 8. Ne4 {[%clk 0:02:56]}  Qb6 {[%clk 0:02:51]} 9. Nxf6+ {[%clk 0:02:56]}  gxf6 {[%clk 0:02:52]} 10. Bc3 {[%clk 0:02:56]}  Bb4 {[%clk 0:02:27]} 11. Bxb4 {[%clk 0:02:56]}  Qxb4+ {[%clk 0:02:28]} 12. c3 {[%clk 0:02:57]}  Qa5 {[%clk 0:02:25]} 13. Rd1 {[%clk 0:02:54]}  Qxa2 {[%clk 0:02:20]} 14. Qb5+ {[%clk 0:02:51]}  Nd7 {[%clk 0:02:17]} 15. Qxb7 {[%clk 0:02:50]}  Ke7 {[%clk 0:00:54]} 16. Qb4+ {[%clk 0:02:45]}  Kd8 {[%clk 0:00:30]} 17. d5 {[%clk 0:01:35]}  Rb8 {[%clk 0:00:30]} 18. Qe4 {[%clk 0:01:35]}  Rxb2 {[%clk 0:00:28]} 19. d6 {[%clk 0:01:30]}  cxd6 {[%clk 0:00:26]} 20. Rxd6 {[%clk 0:01:25]}  Rb1+ {[%clk 0:00:23]} 21. Rd1 {[%clk 0:01:25]}  Rxd1+ {[%clk 0:00:24]} 22. Kxd1 {[%clk 0:01:26]}  Qa1+ {[%clk 0:00:18]} 23. Kc2 {[%clk 0:01:23]}  Qa2+ {[%clk 0:00:12]} 24. Kc1 {[%clk 0:01:22]}  Qxf2 {[%clk 0:00:11]} 25. Ne2 {[%clk 0:01:16]}  Qc5 {[%clk 0:00:07]} 26. Rd1 {[%clk 0:01:15]}  Ke7 {[%clk 0:00:07]} 27. Nf4 {[%clk 0:01:12]}  Rc8 {[%clk 0:00:05]} 28. Ne2 {[%clk 0:01:04]}  Ne5 {[%clk 0:00:05]} 29. Rd4 {[%clk 0:00:50]}  Qc6 {[%clk 0:00:05]} 30. Qxc6 {[%clk 0:00:40]}  Rxc6 {[%clk 0:00:06]} 31. Ra4 {[%clk 0:00:41]}  Rc7 {[%clk 0:00:06]} 32. Kd2 {[%clk 0:00:41]}  Nc4+ {[%clk 0:00:07]} 33. Ke1 {[%clk 0:00:36]}  Nb6 {[%clk 0:00:07]} 34. Rh4 {[%clk 0:00:35]}  Nd5 {[%clk 0:00:07]} 35. Kd2 {[%clk 0:00:28]}  Rd7 {[%clk 0:00:08]} 36. Rxh7 {[%clk 0:00:17]}  Nf4+ {[%clk 0:00:08]} 37. Ke3 {[%clk 0:00:14]}  Nd5+ {[%clk 0:00:07]} 38. Kf2 {[%clk 0:00:13]}  Rc7 {[%clk 0:00:07]} 39. Rh3 {[%clk 0:00:13]}  Rc4 {[%clk 0:00:07]} 40. Rd3 {[%clk 0:00:13]}  a5 {[%clk 0:00:07]} 41. Rd4 {[%clk 0:00:09]}  Rc5 {[%clk 0:00:06]} 42. Ra4 {[%clk 0:00:09]}  f5 {[%clk 0:00:07]} 43. h4 {[%clk 0:00:09]}  Nb6 {[%clk 0:00:07]} 44. Ra3 {[%clk 0:00:08]}  a4 {[%clk 0:00:08]} 45. h5 {[%clk 0:00:08]}  Kf6 {[%clk 0:00:08]} 46. Ke3 {[%clk 0:00:08]}  Kg5 {[%clk 0:00:08]} 47. Kd4 {[%clk 0:00:05]}  Rc4+ {[%clk 0:00:08]} 48. Kd3 {[%clk 0:00:05]}  Kxh5 {[%clk 0:00:08]} 49. Nd4 {[%clk 0:00:06]}  Kg5 {[%clk 0:00:07]} 50. Ra1 {[%clk 0:00:06]}  e5 {[%clk 0:00:07]} 51. Rb1 {[%clk 0:00:06]}  e4+ {[%clk 0:00:07]} 52. Kd2 {[%clk 0:00:06]}  Nd5 {[%clk 0:00:07]} 53. Rb5 {[%clk 0:00:04]}  Nxc3 {[%clk 0:00:08]} 54. Rxf5+ {[%clk 0:00:05]}  Kg4 {[%clk 0:00:08]} 55. Rxf7 {[%clk 0:00:04]}  Rxd4+ {[%clk 0:00:08]} 56. Kxc3 {[%clk 0:00:05]}  Rd3+ {[%clk 0:00:09]} 57. Kb4 {[%clk 0:00:06]}  Rd2 {[%clk 0:00:08]} 58. Re7 {[%clk 0:00:04]}  Kf4 {[%clk 0:00:07]} 59. Rf7+ {[%clk 0:00:05]}  Ke3 {[%clk 0:00:07]} 60. g4 {[%clk 0:00:05]}  Rg2 {[%clk 0:00:07]} 61. Rg7 {[%clk 0:00:05]}  Kf3 {[%clk 0:00:07]} 62. Kxa4 {[%clk 0:00:06]}  Rxg4 {[%clk 0:00:07]} 63. Rf7+ {[%clk 0:00:05]}  Rf4 {[%clk 0:00:08]} 64. Re7 {[%clk 0:00:06]}  e3+ {[%clk 0:00:08]} 65. Kb3 {[%clk 0:00:07]}  Re4 {[%clk 0:00:09]} 66. Rf7+ {[%clk 0:00:07]}  Kg2 {[%clk 0:00:09]} 67. Rg7+ {[%clk 0:00:07]}  Kf2 {[%clk 0:00:10]} 68. Rf7+ {[%clk 0:00:08]}  Kg3 {[%clk 0:00:09]} 69. Rg7+ {[%clk 0:00:08]}  Kf4 {[%clk 0:00:06]} 70. Rf7+ {[%clk 0:00:08]}  Kg4 {[%clk 0:00:05]} 71. Rg7+ {[%clk 0:00:08]}  Kf3 {[%clk 0:00:06]} 72. Rf7+ {[%clk 0:00:08]}  Ke2 {[%clk 0:00:06]} 73. Kc2 {[%clk 0:00:09]}  Rc4+ {[%clk 0:00:06]} 74. Kb3 {[%clk 0:00:09]}  Rc6 {[%clk 0:00:06]} 75. Rh7 {[%clk 0:00:09]}  Kd2 {[%clk 0:00:05]} 76. Rd7+ {[%clk 0:00:10]}  Ke1 {[%clk 0:00:06]} 77. Rh7 {[%clk 0:00:09]}  e2 {[%clk 0:00:06]} 78. Rh6 {[%clk 0:00:07]}  Rxh6 {[%clk 0:00:06]} 0-1


[Site "https://www.chess.com"]

[Event "Titled Tuesday Blitz July 4 Late 2023"]
[White "Gorovets, Andrey"]
[Black "Erzhanov, Arman"]
[WhiteFideId "13504037"]
[BlackFideId "4138821"]
[WhiteElo "2759"]
[BlackElo "2474"]
[Result "0-1"]
[Round "3"]
[TimeControl "180+2"]
[Date "2023.07.04"]
[WhiteClock "0:00:31"]
[BlackClock "0:01:16"]
[Board "63"]

1. d4 {[%clk 0:02:56]}  d6 {[%clk 0:03:00]} 2. Nf3 {[%clk 0:02:55]}  g6 {[%clk 0:03:00]} 3. c4 {[%clk 0:02:54]}  Bg7 {[%clk 0:03:00]} 4. Nc3 {[%clk 0:02:55]}  e5 {[%clk 0:03:01]} 5. e4 {[%clk 0:02:52]}  Bg4 {[%clk 0:03:01]} 6. d5 {[%clk 0:02:43]}  Nd7 {[%clk 0:03:01]} 7. Be2 {[%clk 0:02:42]}  h5 {[%clk 0:02:59]} 8. O-O {[%clk 0:02:36]}  Bxf3 {[%clk 0:02:58]} 9. Bxf3 {[%clk 0:02:35]}  Bh6 {[%clk 0:02:58]} 10. b4 {[%clk 0:02:32]}  a5 {[%clk 0:02:58]} 11. Bxh6 {[%clk 0:02:29]}  Nxh6 {[%clk 0:02:55]} 12. a3 {[%clk 0:02:28]}  O-O {[%clk 0:02:52]} 13. Qd2 {[%clk 0:02:27]}  Kg7 {[%clk 0:02:51]} 14. g3 {[%clk 0:02:19]}  b6 {[%clk 0:02:51]} 15. Bg2 {[%clk 0:02:16]}  f5 {[%clk 0:02:48]} 16. exf5 {[%clk 0:02:12]}  Nxf5 {[%clk 0:02:46]} 17. Ne4 {[%clk 0:02:11]}  Nd4 {[%clk 0:02:42]} 18. Ng5 {[%clk 0:02:11]}  Qf6 {[%clk 0:02:34]} 19. Ne6+ {[%clk 0:02:10]}  Nxe6 {[%clk 0:02:31]} 20. dxe6 {[%clk 0:02:11]}  Qxe6 {[%clk 0:02:32]} 21. Bxa8 {[%clk 0:02:08]}  Rxa8 {[%clk 0:02:32]} 22. Qd5 {[%clk 0:02:08]}  Qxd5 {[%clk 0:02:25]} 23. cxd5 {[%clk 0:02:09]}  Nf6 {[%clk 0:02:26]} 24. Rad1 {[%clk 0:01:51]}  axb4 {[%clk 0:02:24]} 25. axb4 {[%clk 0:01:52]}  Ra4 {[%clk 0:02:25]} 26. b5 {[%clk 0:01:45]}  Ra5 {[%clk 0:02:18]} 27. Rd3 {[%clk 0:01:30]}  Rxb5 {[%clk 0:02:17]} 28. Rfd1 {[%clk 0:01:30]}  Kf7 {[%clk 0:02:11]} 29. f3 {[%clk 0:01:28]}  Ke7 {[%clk 0:02:06]} 30. Kg2 {[%clk 0:01:27]}  Kd7 {[%clk 0:02:06]} 31. h4 {[%clk 0:01:21]}  Rc5 {[%clk 0:02:03]} 32. Kh3 {[%clk 0:01:20]}  Rc4 {[%clk 0:01:57]} 33. Rg1 {[%clk 0:01:20]}  b5 {[%clk 0:01:42]} 34. g4 {[%clk 0:01:18]}  hxg4+ {[%clk 0:01:39]} 35. fxg4 {[%clk 0:01:19]}  b4 {[%clk 0:01:39]} 36. Rf1 {[%clk 0:01:03]}  Ke7 {[%clk 0:01:38]} 37. Rdf3 {[%clk 0:01:01]}  Nxd5 {[%clk 0:01:36]} 38. Rf7+ {[%clk 0:00:59]}  Ke6 {[%clk 0:01:36]} 39. Rg7 {[%clk 0:00:55]}  Nf4+ {[%clk 0:01:35]} 40. Kg3 {[%clk 0:00:55]}  Rc3+ {[%clk 0:01:34]} 41. Rf3 {[%clk 0:00:55]}  Rxf3+ {[%clk 0:01:29]} 42. Kxf3 {[%clk 0:00:56]}  c5 {[%clk 0:01:30]} 43. Rb7 {[%clk 0:00:52]}  Kd5 {[%clk 0:01:22]} 44. h5 {[%clk 0:00:36]}  gxh5 {[%clk 0:01:21]} 45. g5 {[%clk 0:00:37]}  h4 {[%clk 0:01:19]} 46. Kg4 {[%clk 0:00:37]}  h3 {[%clk 0:01:19]} 47. Kf5 {[%clk 0:00:35]}  h2 {[%clk 0:01:18]} 48. Rh7 {[%clk 0:00:36]}  c4 {[%clk 0:01:18]} 49. g6 {[%clk 0:00:34]}  Nxg6 {[%clk 0:01:16]} 50. Kxg6 {[%clk 0:00:34]}  c3 {[%clk 0:01:16]} 51. Rxh2 {[%clk 0:00:31]}  b3 {[%clk 0:01:16]} 0-1


[Site "https://www.chess.com"]

[Event "Titled Tuesday Blitz July 4 Late 2023"]
[White "Le Goff, Ronan"]
[Black "Plat, Vojtech"]
[WhiteFideId "612073"]
[BlackFideId "325740"]
[WhiteElo "2474"]
[BlackElo "2744"]
[Result "0-1"]
[Round "3"]
[TimeControl "180+2"]
[Date "2023.07.04"]
[WhiteClock "0:01:38"]
[BlackClock "0:02:17"]
[Board "64"]

1. d4 {[%clk 0:03:00]}  d6 {[%clk 0:03:00]} 2. e4 {[%clk 0:02:58]}  Nf6 {[%clk 0:03:01]} 3. Nc3 {[%clk 0:02:58]}  e5 {[%clk 0:03:01]} 4. Nf3 {[%clk 0:02:58]}  Nbd7 {[%clk 0:03:00]} 5. Bc4 {[%clk 0:02:58]}  Be7 {[%clk 0:03:00]} 6. O-O {[%clk 0:02:58]}  O-O {[%clk 0:03:00]} 7. a4 {[%clk 0:02:59]}  a5 {[%clk 0:03:00]} 8. Re1 {[%clk 0:02:59]}  c6 {[%clk 0:02:59]} 9. h3 {[%clk 0:02:56]}  Nb6 {[%clk 0:03:00]} 10. Bb3 {[%clk 0:02:54]}  Nfd7 {[%clk 0:03:00]} 11. dxe5 {[%clk 0:02:46]}  dxe5 {[%clk 0:03:00]} 12. Be3 {[%clk 0:02:47]}  Qc7 {[%clk 0:03:00]} 13. Qe2 {[%clk 0:02:43]}  Nc5 {[%clk 0:03:00]} 14. Ba2 {[%clk 0:02:40]}  h6 {[%clk 0:02:55]} 15. Red1 {[%clk 0:02:39]}  Nbxa4 {[%clk 0:02:52]} 16. Nxa4 {[%clk 0:02:38]}  Nxa4 {[%clk 0:02:52]} 17. Bxf7+ {[%clk 0:02:27]}  Rxf7 {[%clk 0:02:52]} 18. Rxa4 {[%clk 0:02:28]}  b5 {[%clk 0:02:52]} 19. Raa1 {[%clk 0:02:27]}  Be6 {[%clk 0:02:51]} 20. Nh2 {[%clk 0:02:25]}  a4 {[%clk 0:02:49]} 21. b3 {[%clk 0:02:21]}  Rff8 {[%clk 0:02:43]} 22. bxa4 {[%clk 0:02:19]}  bxa4 {[%clk 0:02:43]} 23. c4 {[%clk 0:02:17]}  a3 {[%clk 0:02:42]} 24. Ng4 {[%clk 0:02:13]}  Kh7 {[%clk 0:02:40]} 25. c5 {[%clk 0:02:12]}  a2 {[%clk 0:02:37]} 26. Qc2 {[%clk 0:02:11]}  Rfb8 {[%clk 0:02:32]} 27. Bd2 {[%clk 0:02:09]}  Bb3 {[%clk 0:02:28]} 28. Qc1 {[%clk 0:02:04]}  Bxd1 {[%clk 0:02:28]} 29. Qxd1 {[%clk 0:02:00]}  Qd7 {[%clk 0:02:27]} 30. Nxe5 {[%clk 0:01:57]}  Qd4 {[%clk 0:02:26]} 31. Qh5 {[%clk 0:01:54]}  Qxa1+ {[%clk 0:02:25]} 32. Be1 {[%clk 0:01:46]}  Qxe1+ {[%clk 0:02:24]} 33. Kh2 {[%clk 0:01:46]}  Qxf2 {[%clk 0:02:19]} 34. Qg6+ {[%clk 0:01:46]}  Kh8 {[%clk 0:02:18]} 35. Nf7+ {[%clk 0:01:44]}  Qxf7 {[%clk 0:02:18]} 36. Qxf7 {[%clk 0:01:38]}  Bf6 {[%clk 0:02:17]} 0-1


[Site "https://www.chess.com"]

[Event "Titled Tuesday Blitz July 4 Late 2023"]
[White "Fiedorek, Michal"]
[Black "Goryachkina, Aleksandra"]
[WhiteFideId "1199528"]
[BlackFideId "4147103"]
[WhiteElo "2469"]
[BlackElo "2721"]
[Result "1/2-1/2"]
[Round "3"]
[TimeControl "180+2"]
[Date "2023.07.04"]
[WhiteClock "0:00:24"]
[BlackClock "0:00:00"]
[Board "66"]

1. e4 {[%clk 0:02:55]}  c5 {[%clk 0:02:59]} 2. Nf3 {[%clk 0:02:52]}  e6 {[%clk 0:03:00]} 3. d4 {[%clk 0:02:51]}  cxd4 {[%clk 0:03:00]} 4. Nxd4 {[%clk 0:02:52]}  Nc6 {[%clk 0:03:00]} 5. Nb5 {[%clk 0:02:53]}  Nf6 {[%clk 0:02:51]} 6. e5 {[%clk 0:02:46]}  Ne4 {[%clk 0:02:00]} 7. Qg4 {[%clk 0:02:18]}  f5 {[%clk 0:01:44]} 8. exf6 {[%clk 0:02:17]}  Nxf6 {[%clk 0:01:44]} 9. Qg3 {[%clk 0:02:13]}  d6 {[%clk 0:01:41]} 10. Bd3 {[%clk 0:02:11]}  a6 {[%clk 0:01:39]} 11. N5c3 {[%clk 0:02:08]}  Qc7 {[%clk 0:01:28]} 12. O-O {[%clk 0:02:07]}  Qf7 {[%clk 0:01:27]} 13. Na3 {[%clk 0:02:05]}  b5 {[%clk 0:01:18]} 14. Ne4 {[%clk 0:02:04]}  Nxe4 {[%clk 0:01:10]} 15. Bxe4 {[%clk 0:02:05]}  d5 {[%clk 0:01:04]} 16. Bd3 {[%clk 0:02:04]}  Be7 {[%clk 0:01:01]} 17. Bg5 {[%clk 0:01:56]}  Bxg5 {[%clk 0:00:55]} 18. Qxg5 {[%clk 0:01:56]}  O-O {[%clk 0:00:55]} 19. c3 {[%clk 0:01:54]}  Bb7 {[%clk 0:00:50]} 20. Nc2 {[%clk 0:01:53]}  e5 {[%clk 0:00:48]} 21. Ne3 {[%clk 0:01:45]}  d4 {[%clk 0:00:29]} 22. Nf5 {[%clk 0:01:37]}  Qf6 {[%clk 0:00:20]} 23. Qxf6 {[%clk 0:01:28]}  Rxf6 {[%clk 0:00:20]} 24. cxd4 {[%clk 0:01:27]}  Nxd4 {[%clk 0:00:18]} 25. Nxd4 {[%clk 0:01:23]}  exd4 {[%clk 0:00:19]} 26. Rfe1 {[%clk 0:01:15]}  Raf8 {[%clk 0:00:15]} 27. f3 {[%clk 0:01:15]}  Rd8 {[%clk 0:00:13]} 28. Re5 {[%clk 0:01:15]}  g6 {[%clk 0:00:11]} 29. Rae1 {[%clk 0:01:15]}  Bd5 {[%clk 0:00:10]} 30. a3 {[%clk 0:01:14]}  Bc4 {[%clk 0:00:10]} 31. Rd1 {[%clk 0:01:10]}  Bxd3 {[%clk 0:00:09]} 32. Rxd3 {[%clk 0:01:10]}  Rc6 {[%clk 0:00:09]} 33. Re2 {[%clk 0:01:04]}  Rc1+ {[%clk 0:00:08]} 34. Kf2 {[%clk 0:01:04]}  a5 {[%clk 0:00:08]} 35. Red2 {[%clk 0:01:04]}  a4 {[%clk 0:00:08]} 36. Kg3 {[%clk 0:00:58]}  Rc4 {[%clk 0:00:07]} 37. b3 {[%clk 0:00:57]}  axb3 {[%clk 0:00:06]} 38. Rxb3 {[%clk 0:00:57]}  Ra4 {[%clk 0:00:06]} 39. Rbd3 {[%clk 0:00:44]}  Rd5 {[%clk 0:00:05]} 40. Kf4 {[%clk 0:00:40]}  Rd7 {[%clk 0:00:04]} 41. Ke4 {[%clk 0:00:40]}  Kf7 {[%clk 0:00:04]} 42. Rxd4 {[%clk 0:00:36]}  Rdxd4+ {[%clk 0:00:03]} 43. Rxd4 {[%clk 0:00:36]}  Rxa3 {[%clk 0:00:04]} 44. Rd7+ {[%clk 0:00:32]}  Kg8 {[%clk 0:00:04]} 45. Rb7 {[%clk 0:00:32]}  Ra2 {[%clk 0:00:04]} 46. g3 {[%clk 0:00:24]}  Rxh2 {[%clk 0:00:03]} 47. Rxb5 {[%clk 0:00:24]}  Re2+ {[%clk 0:00:00]} 48. Kf4 {[%clk 0:00:24]} 1/2-1/2


[Site "https://www.chess.com"]

[Event "Titled Tuesday Blitz July 4 Late 2023"]
[White "Wieczorek, Oskar"]
[Black "Rengifo Blancas, Renzo Jhonathan"]
[WhiteFideId "1133950"]
[BlackFideId "3807185"]
[WhiteElo "2717"]
[BlackElo "2465"]
[Result "1-0"]
[Round "3"]
[TimeControl "180+2"]
[Date "2023.07.04"]
[WhiteClock "0:00:18"]
[BlackClock "0:00:00"]
[Board "67"]

1. e4 {[%clk 0:02:56]}  e5 {[%clk 0:03:00]} 2. Nf3 {[%clk 0:02:55]}  d6 {[%clk 0:03:00]} 3. Nc3 {[%clk 0:02:56]}  Nf6 {[%clk 0:03:00]} 4. h3 {[%clk 0:02:57]}  Be7 {[%clk 0:03:01]} 5. Bc4 {[%clk 0:02:57]}  O-O {[%clk 0:03:01]} 6. d3 {[%clk 0:02:57]}  c5 {[%clk 0:03:02]} 7. a4 {[%clk 0:02:57]}  Nc6 {[%clk 0:03:02]} 8. Bg5 {[%clk 0:02:57]}  Be6 {[%clk 0:03:03]} 9. Bxf6 {[%clk 0:02:57]}  Bxf6 {[%clk 0:03:01]} 10. Nd5 {[%clk 0:02:58]}  g6 {[%clk 0:03:00]} 11. O-O {[%clk 0:02:57]}  Bg7 {[%clk 0:03:00]} 12. c3 {[%clk 0:02:57]}  h6 {[%clk 0:02:43]} 13. Ne3 {[%clk 0:02:38]}  Kh7 {[%clk 0:02:39]} 14. Bd5 {[%clk 0:02:29]}  Qd7 {[%clk 0:02:37]} 15. a5 {[%clk 0:02:29]}  a6 {[%clk 0:02:35]} 16. Nc4 {[%clk 0:02:24]}  Rae8 {[%clk 0:02:36]} 17. Nb6 {[%clk 0:02:23]}  Qd8 {[%clk 0:02:33]} 18. Qa4 {[%clk 0:02:20]}  Bxd5 {[%clk 0:02:23]} 19. Nxd5 {[%clk 0:02:18]}  Ne7 {[%clk 0:02:23]} 20. Qb3 {[%clk 0:02:16]}  Nxd5 {[%clk 0:02:20]} 21. Qxd5 {[%clk 0:02:16]}  Qc7 {[%clk 0:02:07]} 22. Nd2 {[%clk 0:02:15]}  f5 {[%clk 0:02:07]} 23. Nc4 {[%clk 0:02:15]}  f4 {[%clk 0:02:03]} 24. f3 {[%clk 0:02:12]}  g5 {[%clk 0:01:37]} 25. b4 {[%clk 0:02:06]}  Rd8 {[%clk 0:01:31]} 26. Rab1 {[%clk 0:02:04]}  Qf7 {[%clk 0:01:25]} 27. Qxf7 {[%clk 0:02:03]}  Rxf7 {[%clk 0:01:25]} 28. Nb6 {[%clk 0:01:56]}  Bf8 {[%clk 0:01:03]} 29. Nd5 {[%clk 0:01:51]}  Rc8 {[%clk 0:01:00]} 30. b5 {[%clk 0:01:48]}  c4 {[%clk 0:00:58]} 31. Nb6 {[%clk 0:01:33]}  Rc5 {[%clk 0:00:56]} 32. dxc4 {[%clk 0:01:30]}  Rfc7 {[%clk 0:00:46]} 33. Nd5 {[%clk 0:01:29]}  Rc8 {[%clk 0:00:46]} 34. Rfd1 {[%clk 0:01:10]}  Kg6 {[%clk 0:00:40]} 35. Rb3 {[%clk 0:00:57]}  Rxc4 {[%clk 0:00:34]} 36. bxa6 {[%clk 0:00:55]}  bxa6 {[%clk 0:00:34]} 37. Rb6 {[%clk 0:00:56]}  R8c6 {[%clk 0:00:30]} 38. Rdb1 {[%clk 0:00:51]}  Kh5 {[%clk 0:00:11]} 39. Rxc6 {[%clk 0:00:48]}  Rxc6 {[%clk 0:00:09]} 40. Rb6 {[%clk 0:00:49]}  Rc5 {[%clk 0:00:10]} 41. Rxa6 {[%clk 0:00:49]}  Rb5 {[%clk 0:00:10]} 42. Ra8 {[%clk 0:00:41]}  Kh4 {[%clk 0:00:08]} 43. Kh2 {[%clk 0:00:29]}  Bg7 {[%clk 0:00:04]} 44. Rg8 {[%clk 0:00:29]}  Rb7 {[%clk 0:00:03]} 45. Re8 {[%clk 0:00:16]}  h5 {[%clk 0:00:03]} 46. Re7 {[%clk 0:00:16]}  Rb2 {[%clk 0:00:01]} 47. Rxg7 {[%clk 0:00:16]}  g4 {[%clk 0:00:02]} 48. hxg4 {[%clk 0:00:16]}  hxg4 {[%clk 0:00:03]} 49. Rxg4+ {[%clk 0:00:16]}  Kh5 {[%clk 0:00:04]} 50. Nf6+ {[%clk 0:00:16]}  Kh6 {[%clk 0:00:04]} 51. Ne8 {[%clk 0:00:16]}  d5 {[%clk 0:00:05]} 52. exd5 {[%clk 0:00:15]}  Kh5 {[%clk 0:00:06]} 53. Nf6+ {[%clk 0:00:15]}  Kh6 {[%clk 0:00:06]} 54. Ne4 {[%clk 0:00:15]}  Kh5 {[%clk 0:00:06]} 55. Rg5+ {[%clk 0:00:15]}  Kh6 {[%clk 0:00:07]} 56. Rxe5 {[%clk 0:00:16]}  Kg6 {[%clk 0:00:07]} 57. Re6+ {[%clk 0:00:17]}  Kf5 {[%clk 0:00:07]} 58. a6 {[%clk 0:00:18]}  Ra2 {[%clk 0:00:06]} 59. Rf6+ {[%clk 0:00:18]}  Ke5 {[%clk 0:00:06]} 60. d6 {[%clk 0:00:18]}  Rxa6 {[%clk 0:00:05]} 61. d7 {[%clk 0:00:18]}  Ra8 {[%clk 0:00:06]} 62. c4 {[%clk 0:00:18]}  Rh8+ {[%clk 0:00:07]} 63. Kg1 {[%clk 0:00:18]}  Kd4 {[%clk 0:00:07]} 64. Rd6+ {[%clk 0:00:18]}  Ke3 {[%clk 0:00:08]} 65. d8=Q {[%clk 0:00:19]}  Ke2 {[%clk 0:00:01]} 66. Rd2+ {[%clk 0:00:18]}  Ke1 {[%clk 0:00:00]} 67. Rd1+ {[%clk 0:00:18]} 1-0


[Site "https://www.chess.com"]

[Event "Titled Tuesday Blitz July 4 Late 2023"]
[White "Czopor, Maciej"]
[Black "Remolar Gallen, Jose"]
[WhiteFideId "21805431"]
[BlackFideId "2215187"]
[WhiteElo "2670"]
[BlackElo "2454"]
[Result "1-0"]
[Round "3"]
[TimeControl "180+2"]
[Date "2023.07.04"]
[WhiteClock "0:02:27"]
[BlackClock "0:01:39"]
[Board "71"]

1. c4 {[%clk 0:03:00]}  Nf6 {[%clk 0:02:59]} 2. Nc3 {[%clk 0:03:01]}  g6 {[%clk 0:03:00]} 3. e4 {[%clk 0:03:02]}  d6 {[%clk 0:02:58]} 4. d4 {[%clk 0:03:02]}  Bg7 {[%clk 0:02:59]} 5. f4 {[%clk 0:03:01]}  O-O {[%clk 0:02:59]} 6. Nf3 {[%clk 0:03:02]}  Na6 {[%clk 0:02:59]} 7. Bd3 {[%clk 0:03:00]}  e5 {[%clk 0:02:59]} 8. fxe5 {[%clk 0:03:00]}  dxe5 {[%clk 0:03:00]} 9. d5 {[%clk 0:03:01]}  Nc5 {[%clk 0:02:59]} 10. Bc2 {[%clk 0:03:01]}  a5 {[%clk 0:02:58]} 11. O-O {[%clk 0:03:01]}  Qe7 {[%clk 0:02:55]} 12. Bg5 {[%clk 0:03:00]}  h6 {[%clk 0:02:48]} 13. Bh4 {[%clk 0:02:59]}  g5 {[%clk 0:02:47]} 14. Bf2 {[%clk 0:02:58]}  Ng4 {[%clk 0:02:34]} 15. Kh1 {[%clk 0:02:45]}  Nxf2+ {[%clk 0:02:34]} 16. Rxf2 {[%clk 0:02:46]}  f5 {[%clk 0:02:18]} 17. exf5 {[%clk 0:02:43]}  e4 {[%clk 0:02:19]} 18. Nd4 {[%clk 0:02:38]}  Qe5 {[%clk 0:01:55]} 19. Ne6 {[%clk 0:02:31]}  Rxf5 {[%clk 0:01:52]} 20. Rxf5 {[%clk 0:02:26]}  Qxf5 {[%clk 0:01:51]} 21. Nxg7 {[%clk 0:02:26]}  Kxg7 {[%clk 0:01:39]} 22. Qd4+ {[%clk 0:02:27]} 1-0


[Site "https://www.chess.com"]

[Event "Titled Tuesday Blitz July 4 Late 2023"]
[White "Salimova, Nurgyul"]
[Black "Horcajuelo Rocamora, Martin"]
[WhiteFideId "2915138"]
[BlackFideId "24573027"]
[WhiteElo "2645"]
[BlackElo "2449"]
[Result "0-1"]
[Round "3"]
[TimeControl "180+2"]
[Date "2023.07.04"]
[WhiteClock "0:00:00"]
[BlackClock "0:01:15"]
[Board "73"]

1. Nf3 {[%clk 0:03:00]}  Nf6 {[%clk 0:02:56]} 2. g3 {[%clk 0:02:59]}  g6 {[%clk 0:02:54]} 3. d4 {[%clk 0:02:59]}  Bg7 {[%clk 0:02:55]} 4. Bg2 {[%clk 0:02:59]}  O-O {[%clk 0:02:56]} 5. O-O {[%clk 0:02:57]}  c6 {[%clk 0:02:57]} 6. a4 {[%clk 0:02:51]}  d5 {[%clk 0:02:57]} 7. a5 {[%clk 0:02:51]}  Bf5 {[%clk 0:02:52]} 8. Bf4 {[%clk 0:02:42]}  Na6 {[%clk 0:02:52]} 9. Nbd2 {[%clk 0:02:41]}  b5 {[%clk 0:02:51]} 10. Nb3 {[%clk 0:02:33]}  Nd7 {[%clk 0:02:44]} 11. Re1 {[%clk 0:02:12]}  e6 {[%clk 0:02:44]} 12. Nfd2 {[%clk 0:01:52]}  c5 {[%clk 0:02:42]} 13. e4 {[%clk 0:01:52]}  dxe4 {[%clk 0:02:42]} 14. Nxe4 {[%clk 0:01:52]}  c4 {[%clk 0:02:35]} 15. Nbd2 {[%clk 0:01:43]}  Bxd4 {[%clk 0:02:32]} 16. Nd6 {[%clk 0:01:34]}  Bxb2 {[%clk 0:02:30]} 17. Rb1 {[%clk 0:01:34]}  Ba3 {[%clk 0:02:21]} 18. Nxf5 {[%clk 0:01:32]}  exf5 {[%clk 0:02:19]} 19. Bxa8 {[%clk 0:01:32]}  Qxa8 {[%clk 0:02:20]} 20. Rxb5 {[%clk 0:01:31]}  Qc6 {[%clk 0:02:11]} 21. Qb1 {[%clk 0:01:14]}  Bc5 {[%clk 0:02:09]} 22. Bh6 {[%clk 0:01:05]}  Rc8 {[%clk 0:02:05]} 23. Nf1 {[%clk 0:00:57]}  Qf6 {[%clk 0:01:36]} 24. Be3 {[%clk 0:00:38]}  Ne5 {[%clk 0:01:35]} 25. Qd1 {[%clk 0:00:34]}  Qc6 {[%clk 0:01:32]} 26. Rxc5 {[%clk 0:00:25]}  Nxc5 {[%clk 0:01:31]} 27. Nd2 {[%clk 0:00:16]}  Rd8 {[%clk 0:01:30]} 28. Bh6 {[%clk 0:00:06]}  Ne4 {[%clk 0:01:18]} 29. Qe2 {[%clk 0:00:02]}  Nxd2 {[%clk 0:01:15]} 30. Bxd2 {[%clk 0:00:00]}  Nf3+ {[%clk 0:01:15]} 0-1


[Site "https://www.chess.com"]